fUSD/lending_fUSD_20250213
["ID","MTS","AMOUNT","RATE_DAILY","PERIOD"]
[352906569,1739404891306,150.0,0.00019875,120]
[352906570,1739404950759,150.0,0.00019786,120]
[352906571,1739404959648,500.0,0.0002,120]
[352906572,1739405190777,150.0,0.00019735,120]
[352906584,1739405432003,-322.26793109,0.00012106,2]
[352906585,1739405432015,-602.15206891,0.00012106,2]
[352906586,1739405432025,-150.0,0.00013317,2]
[352906587,1739405432035,-150.0,0.00013317,2]
[352906588,1739405432045,-150.0,0.00013317,2]
[352906589,1739405432054,-220.37,0.00013699,2]
[352906590,1739405432064,-200.0,0.000137,2]
[352906591,1739405432073,-1000.0,0.00013857,2]
[352906592,1739405432083,-243.06,0.00013971,2]
[352906593,1739405432091,-311.28093149,0.00014077,2]
[352906594,1739405432126,-628.90906851,0.00014077,2]
[352906595,1739405432148,-5660.16093149,0.00014111,2]
[352906596,1739405432160,-3071.705,0.00014111,2]
[352906597,1739405432172,-490.25406851,0.00014111,2]
[352906598,1739405432183,-3026.99593163,0.000142,2]
[352906599,1739405432195,-2501.25394069,0.000142,2]
[352906600,1739405432207,-293.49962424,0.000142,2]
[352906601,1739405432228,-144.02244303,0.000142,2]
[352906602,1739405432237,-191.63127602,0.00014256,2]
[352906603,1739405432249,-247.24872398,0.00014256,2]
[352906604,1739405432259,-150.83,0.00014256,2]
[352906605,1739405432269,-150.0,0.00014256,2]
[352906606,1739405432278,-42.42542852,0.00014258,2]
[352906607,1739405432299,-107.57457148,0.00014258,2]
[352906608,1739405432309,-167.75,0.00014259,2]
[352906609,1739405432319,-3213.77,0.00014259,2]
[352906610,1739405432329,-299.99,0.00014259,2]
[352906611,1739405432339,-626.86,0.00014259,2]
[352906612,1739405432349,-150.99,0.00014259,2]
[352906613,1739405432360,-394.38,0.00014259,2]
[352906614,1739405432370,-2810.9,0.00014259,2]
[352906615,1739405432380,-9999.99,0.00014259,2]
[352906616,1739405432390,-13592.74,0.00014259,2]
[352906617,1739405432400,-9999.99,0.00014259,2]
[352906618,1739405432410,-150.99,0.00014259,2]
[352906619,1739405432420,-1448.8,0.00014259,2]
[352906620,1739405432431,-1378.65,0.00014259,2]
[352906622,1739405432448,-924.42,0.0001437,2]
[352906624,1739405432458,-150.0,0.00014375,2]
[352906626,1739405432469,-234.649049,0.00014375,2]
[352906627,1739405432482,-150.0,0.00014375,2]
[352906628,1739405432493,-188.32,0.00014405,2]
[352906629,1739405432503,-182.91142475,0.0001452,3]
[352906630,1739405432515,-817.08857525,0.0001452,3]
[352906631,1739405432525,-171.37942475,0.00014634,2]
[352906632,1739405432561,-272.47,0.00014634,2]
[352906640,1739405437909,-556.15057525,0.00014634,2]
[352906641,1739405437919,-3922.78,0.00014634,2]
[352906642,1739405437928,-1100.0,0.000147,5]
[352906643,1739405437938,-1000.0,0.00014794,3]
[352906644,1739405437949,-2300.0,0.000148,5]
[352906645,1739405437959,-3192.99703749,0.0001489,2]
[352906646,1739405437969,-2977.57170981,0.0001489,2]
[352906647,1739405437978,-694.96137004,0.0001489,2]
[352906648,1739405437988,-694.96137002,0.00014894,2]
[352906649,1739405437998,-694.96137002,0.00014898,2]
[352906650,1739405438008,-163.08314059,0.000149,2]
[352906651,1739405438018,-3400.0,0.000149,5]
[352906652,1739405438028,-985.29026944,0.0001494,2]
[352906653,1739405438038,-418.1719,0.00014959,2]
[352906654,1739405438048,-153.65595818,0.00014973,2]
[352906655,1739405438061,-500.0,0.00014973,2]
[352906656,1739405438070,-500.0,0.00014973,2]
[352906657,1739405438080,-160.90197041,0.00014973,2]
[352906658,1739405438089,-151.33690138,0.00014973,2]
[352906659,1739405438099,-152.00280362,0.00014973,2]
[352906660,1739405438108,-90179.77424596,0.0001498,2]
[352906662,1739405438132,-617.5,0.0001498,2]
[352906667,1739405438172,-1235.034975,0.0001498,2]
[352906753,1739405440276,-2465.185,0.0001498,2]
[352906754,1739405440330,-1607.00258999,0.0001498,2]
[352906755,1739405440385,-2264.35521987,0.0001498,2]
[352906756,1739405440398,-889.84710868,0.0001498,2]
[352906757,1739405440442,-984.3662,0.0001498,2]
[352906784,1739405442914,-941.42001466,0.0001498,2]
[352906787,1739405443073,-511.42691053,0.0001496,2]
[352906788,1739405443126,-607.46202725,0.0001496,2]
[352906789,1739405443139,-2881.11106222,0.0001496,2]
[352906790,1739405443148,-117885.32400424,0.0001498,2]
[352906791,1739405443178,-12201.46581648,0.0001498,2]
[352906792,1739405445945,-4000.0,0.0001488,2]
[352906793,1739405445957,-3293.99394366,0.0001498,2]
[352906794,1739405445999,-15321.43850546,0.0001498,2]
[352906795,1739405446009,-152.42,0.0001498,2]
[352906796,1739405446019,-152.42,0.0001498,2]
[352906797,1739405446030,-152.42,0.0001498,2]
[352906798,1739405446040,-152.42,0.00014982,2]
[352906799,1739405446050,-500.0,0.00014989,2]
[352906800,1739405446061,-183.2104776,0.00014989,2]
[352906801,1739405446071,-461.66030202,0.00014989,2]
[352906802,1739405446080,-36869.01071492,0.0001499,2]
[352906803,1739405446184,-82645.77510595,0.0001499,2]
[352906804,1739405446194,-19404.14815586,0.0001499,3]
[352906805,1739405446207,-350.0,0.0001499,3]
[352906806,1739405446268,-1130.2988622,0.0001499,3]
[352906807,1739405446280,-3806.15415052,0.0001499,3]
[352906808,1739405446293,-3491.14458549,0.0001499,3]
[352906809,1739405454644,1043.4028,8.973e-05,2]
[352906810,1739405486379,5425.0693,8.973e-05,2]
[352906811,1739405568354,500.0,8.851e-05,2]
[352906812,1739405586948,511.5397,8.699e-05,2]
[352906813,1739405593140,679.7125,8.851e-05,2]
[352906815,1739405806851,266.6287,8.699e-05,2]
[352906816,1739405979041,150.95,0.00010137,2]
[352906817,1739406151255,150.0,0.0001978,120]
[352906818,1739406309000,973776.59980034,0.0001,2]
[352906819,1739406311653,1043.63325731,0.00020741,120]
[352906820,1739406321185,220.44425437,0.00020741,120]
[352906821,1739406322630,649.90126153,0.00020741,120]
[352906822,1739406328017,543.50650079,0.0002,120]
[352906823,1739406343137,33560.95498738,9.9e-05,2]
[352906824,1739406343312,268.73255412,0.00020741,120]
[352906826,1739406355288,2391.37303009,0.00020741,120]
[352906828,1739406375461,200.56981454,0.00020741,120]
[352906829,1739406381322,201.32378535,0.00020741,120]
[352906830,1739406382307,322.27624733,0.00020741,120]
[352906831,1739406388121,169.86620151,0.00020741,120]
[352906832,1739406421266,229.18977854,0.00020741,120]
[352906833,1739406434388,198.76577093,0.00020741,120]
[352906834,1739406456113,259.65308368,0.00020741,120]
[352906835,1739406461853,158.65499155,0.00020741,120]
[352906836,1739406466286,359.11528982,0.00020741,120]
[352906837,1739406467484,204.03835179,0.00020741,120]
[352906838,1739406470431,195.29808993,0.00020741,120]
[352906839,1739406474657,260.95211139,0.00020741,120]
[352906840,1739406494149,155.94438252,0.0002,120]
[352906841,1739406511764,1149.6686885,0.00020741,120]
[352906842,1739406515537,179.02391899,0.00020741,120]
[352906843,1739406516136,740.95348669,0.00020741,120]
[352906844,1739406516530,2209.04648176,0.00020741,120]
[352906845,1739406516638,154.31289223,0.00020741,120]
[352906846,1739406517498,1893.49213941,0.00020741,120]
[352906847,1739406518515,223.19978217,0.00020741,120]
[352906848,1739406519094,706.7697063,0.00020741,120]
[352906854,1739406521720,164.43100909,0.00020741,120]
[352906855,1739406522571,164.95740177,0.00020741,120]
[352906856,1739406524243,319.71987117,0.00020741,120]
[352906858,1739406526547,998.00922397,0.00020741,120]
[352906878,1739406632147,-409.4664,0.00012082,2]
[352906879,1739406632214,-462.3236,0.00012082,2]
[352906880,1739406632234,-74.47276999,0.00013,2]
[352906881,1739406632253,-475.52723001,0.00013,2]
[352906882,1739406632262,-154.59210098,0.0001319,2]
[352906883,1739406632272,-150.0,0.0001329,2]
[352906884,1739406632282,-150.0,0.0001329,2]
[352906885,1739406632292,-150.0,0.0001329,2]
[352906886,1739406632303,-150.0,0.00013639,2]
[352906887,1739406632312,-200.12389568,0.000137,2]
[352906888,1739406632322,-200.0,0.00013878,2]
[352906889,1739406632331,-250.0,0.00013909,2]
[352906890,1739406632341,-243.06,0.00013935,2]
[352906891,1739406632351,-165.16,0.00013935,2]
[352906892,1739406632360,-232.23,0.00013935,2]
[352906893,1739406632370,-1000.0,0.00013935,2]
[352906894,1739406632380,-154.59210098,0.0001399,2]
[352906895,1739406632389,-1131.85,0.00014092,2]
[352906896,1739406632399,-1365.66,0.00014092,2]
[352906897,1739406632409,-4576.73323107,0.00014092,2]
[352906898,1739406632421,-973.725,0.00014092,2]
[352906899,1739406632432,-542.92,0.00014092,2]
[352906900,1739406632444,-479.93,0.00014092,2]
[352906901,1739406632455,-3426.68176893,0.00014092,2]
[352906902,1739406632465,-29999.99,0.00014092,2]
[352906903,1739406632475,-750.36,0.00014092,2]
[352906904,1739406632485,-1980.0,0.00014093,2]
[352906905,1739406632494,-794.27,0.00014106,2]
[352906906,1739406632504,-200.2,0.0001412,2]
[352906907,1739406632513,-871.79,0.00014346,2]
[352906908,1739406632524,-150.0,0.00014375,2]
[352906909,1739406632533,-156.69716162,0.00014375,2]
[352906910,1739406632543,-1000.0,0.000145,2]
[352906911,1739406632553,-3969.005,0.0001452,2]
[352906912,1739406632563,-179.05,0.0001452,2]
[352906913,1739406632572,-1000.0,0.0001452,3]
[352906914,1739406632582,-1569.0,0.000146,2]
[352906915,1739406632591,-800.0,0.000147,5]
[352906916,1739406632600,-154.59210098,0.0001479,2]
[352906917,1739406632610,-1000.0,0.00014794,3]
[352906918,1739406632620,-1600.0,0.000148,5]
[352906919,1739406632630,-1620.80886,0.0001484,2]
[352906920,1739406632640,-500.0,0.00014877,2]
[352906921,1739406632650,-2873.69733375,0.0001489,2]
[352906922,1739406632659,-2854.64470945,0.0001489,2]
[352906923,1739406632669,-178.24067022,0.0001489,2]
[352906924,1739406632678,-571.41328456,0.000149,2]
[352906925,1739406632687,-164.16230038,0.000149,2]
[352906927,1739406632697,-1000.0,0.000149,2]
[352906928,1739406632707,-2400.0,0.000149,5]
[352906929,1739406632717,-211.72241542,0.00014973,2]
[352906931,1739406632726,-501.73578185,0.00014973,2]
[352906933,1739406632736,-500.33154872,0.00014973,2]
[352906935,1739406632745,-506.30883483,0.00014973,2]
[352906937,1739406632754,-500.0,0.00014973,2]
[352906939,1739406632763,-1000.0,0.00014989,2]
[352906941,1739406632773,-1000.0,0.00014989,2]
[352906943,1739406632783,-1000.0,0.00014989,2]
[352906945,1739406632792,-1000.0,0.00014989,2]
[352906946,1739406632801,-1000.0,0.00014989,2]
[352906948,1739406632811,-507.07884636,0.00014989,2]
[352906950,1739406632821,-175245.223529,0.0001499,2]
[352906952,1739406632831,-152.42,0.0001499,2]
[352906953,1739406632841,-269.806033,0.0001499,2]
[352906954,1739406632851,-151.0,0.0001499,2]
[352906955,1739406632860,-151.0,0.0001499,2]
[352906956,1739406632870,-151.0,0.0001499,2]
[352906957,1739406632879,-151.0,0.0001499,2]
[352906958,1739406632888,-151.687475,0.0001499,2]
[352906959,1739406632898,-151.0,0.0001499,2]
[352906960,1739406632910,-151.0,0.0001499,2]
[352906961,1739406632920,-151.0,0.0001499,2]
[352906962,1739406632929,-151.0,0.0001499,2]
[352906963,1739406632939,-151.0,0.0001499,2]
[352906964,1739406632950,-151.0,0.0001499,2]
[352906965,1739406632959,-151.0,0.0001499,2]
[352906966,1739406632969,-151.0,0.0001499,2]
[352906967,1739406632979,-151.0,0.0001499,2]
[352906968,1739406632989,-151.0,0.0001499,2]
[352906969,1739406632999,-151.0,0.0001499,2]
[352906970,1739406633008,-151.0,0.0001499,2]
[352906971,1739406633018,-151.0,0.0001499,2]
[352906972,1739406633028,-103541.73882542,0.0001499,2]
[352906973,1739406633041,-1129.79283877,0.0001499,2]
[352906974,1739406633054,-1472.99276287,0.0001499,2]
[352906975,1739406633079,-1192.4879524,0.0001499,2]
[352906976,1739406633103,-260.0,0.0001499,2]
[352906977,1739406633306,-8431.155802,0.0001499,2]
[352906978,1739406633353,-17417.96625061,0.0001499,2]
[352906979,1739406633366,-17170.5,0.0001499,2]
[352906980,1739406633378,-1914.75277448,0.0001499,2]
[352906981,1739406633389,-92811.92573345,0.0001499,2]
[352906982,1739406633399,-152.42,0.0001499,2]
[352906983,1739406633410,-152.42,0.0001499,2]
[352906984,1739406633420,-152.42,0.0001499,2]
[352906985,1739406633429,-152.42,0.0001499,2]
[352906986,1739406633439,-152.42,0.0001499,2]
[352906987,1739406633448,-448.73837304,0.0001499,2]
[352906988,1739406633457,-182.66861428,0.0001499,2]
[352906989,1739406633467,-174.1550154,0.00014999,2]
[352906990,1739406633476,-1000.0,0.00014999,2]
[352906991,1739406633485,-1000.0,0.00014999,2]
[352906992,1739406633495,-38716.02574857,0.00015,3]
[352906993,1739406633506,-48144.85684562,0.00015,3]
[352906994,1739406633532,-511.04440164,0.00015,2]
[352906995,1739406633543,-4710.59138291,0.00015,2]
[352906996,1739406633554,-10990.7178646,0.00015,2]
[352906997,1739406633565,-6018.81893899,0.00015,2]
[352906998,1739406633577,-399836.89453815,0.00015,2]
[352906999,1739406633594,-229.70809196,0.00015,2]
[352907000,1739406633604,-151.0,0.00015,2]
[352907001,1739406633613,-151.0,0.00015,2]
[352907002,1739406633624,-151.0,0.00015,2]
[352907003,1739406633634,-249.936,0.00015,2]
[352907004,1739406633646,-249.936,0.00015,2]
[352907005,1739406633657,-151.0,0.00015,2]
[352907006,1739406633668,-151.0,0.00015,2]
[352907007,1739406633677,-151.0,0.00015,2]
[352907008,1739406633686,-152.937001,0.00015,2]
[352907009,1739406633696,-292.530521,0.00015,2]
[352907010,1739406633705,-151.0,0.00015,2]
[352907011,1739406633714,-151.0,0.00015,2]
[352907012,1739406633723,-151.0,0.00015,2]
[352907013,1739406633732,-180.180917,0.00015,2]
[352907014,1739406633742,-151.0,0.00015,2]
[352907015,1739406633752,-151.0,0.00015,2]
[352907016,1739406633761,-151.0,0.00015,2]
[352907017,1739406633770,-151.0,0.00015,2]
[352907018,1739406633780,-600.0,0.00015,2]
[352907019,1739406633789,-151.0,0.00015,2]
[352907020,1739406633798,-165.395642,0.00015,2]
[352907021,1739406633808,-151.0,0.00015,2]
[352907022,1739406633817,-151.0,0.00015,2]
[352907023,1739406633827,-151.0,0.00015,2]
[352907024,1739406633843,-151.0,0.00015,2]
[352907025,1739406633854,-151.0,0.00015,2]
[352907026,1739406633863,-182.35561,0.00015,2]
[352907027,1739406633873,-151.0,0.00015,2]
[352907028,1739406633884,-637.212681,0.00015,2]
[352907029,1739406633894,-1135.910533,0.00015,2]
[352907030,1739406633903,-637.212681,0.00015,2]
[352907031,1739406633913,-749.163521,0.00015,2]
[352907032,1739406633923,-1135.910533,0.00015,2]
[352907033,1739406633933,-749.163521,0.00015,2]
[352907034,1739406633943,-151.0,0.00015,2]
[352907035,1739406633953,-278.307505,0.00015,2]
[352907036,1739406633963,-278.307505,0.00015,2]
[352907037,1739406633973,-151.0,0.00015,2]
[352907038,1739406633982,-224.37011,0.00015,2]
[352907039,1739406633992,-224.37011,0.00015,2]
[352907040,1739406634001,-411.524031,0.00015,2]
[352907041,1739406634010,-411.524031,0.00015,2]
[352907042,1739406634020,-467.099237,0.00015,2]
[352907043,1739406634029,-849.007241,0.00015,2]
[352907044,1739406634039,-467.099237,0.00015,2]
[352907045,1739406634049,-849.007241,0.00015,2]
[352907046,1739406634059,-1804.37648,0.00015,2]
[352907047,1739406634069,-451.525263,0.00015,2]
[352907048,1739406634078,-1804.37648,0.00015,2]
[352907049,1739406634089,-451.525263,0.00015,2]
[352907050,1739406634099,-151.0,0.00015,2]
[352907051,1739406634108,-151.0,0.00015,2]
[352907052,1739406634118,-151.0,0.00015,2]
[352907053,1739406634128,-326.349976,0.00015,2]
[352907054,1739406634138,-326.349976,0.00015,2]
[352907055,1739406634147,-151.0,0.00015,2]
[352907056,1739406634157,-10000.0,0.00015,2]
[352907057,1739406634166,-410.890911,0.00015,2]
[352907058,1739406634176,-151.0,0.00015,2]
[352907059,1739406634185,-10000.0,0.00015,2]
[352907060,1739406634195,-410.890911,0.00015,2]
[352907061,1739406634208,-10000.0,0.00015,2]
[352907062,1739406634219,-151.0,0.00015,2]
[352907063,1739406634228,-151.0,0.00015,2]
[352907064,1739406634239,-151.0,0.00015,2]
[352907065,1739406634249,-151.0,0.00015,2]
[352907066,1739406634258,-151.0,0.00015,2]
[352907067,1739406634268,-151.0,0.00015,2]
[352907068,1739406634280,-151.0,0.00015,2]
[352907069,1739406634291,-151.0,0.00015,2]
[352907070,1739406634301,-151.0,0.00015,2]
[352907071,1739406634310,-151.0,0.00015,2]
[352907072,1739406634320,-151.0,0.00015,2]
[352907073,1739406634329,-151.0,0.00015,2]
[352907074,1739406634340,-151.0,0.00015,2]
[352907075,1739406634350,-151.0,0.00015,2]
[352907076,1739406634359,-242.881723,0.00015,2]
[352907077,1739406634369,-180.815367,0.00015,2]
[352907078,1739406634378,-168.606986,0.00015,2]
[352907079,1739406634388,-168.606986,0.00015,2]
[352907080,1739406634397,-151.0,0.00015,2]
[352907081,1739406634406,-151.0,0.00015,2]
[352907082,1739406634415,-2873.69733372,0.00015002,2]
[352907083,1739406634425,-2854.64470938,0.00015002,2]
[352907084,1739406634434,-1000.0,0.00015068,3]
[352907085,1739406634444,-999.0,0.00015068,2]
[352907086,1739406634454,-200.0,0.00015068,2]
[352907087,1739406634464,-1000.0,0.00015085,2]
[352907088,1739406634474,-2873.69733372,0.00015114,2]
[352907089,1739406634483,-2854.64470938,0.00015114,2]
[352907090,1739406634493,-571.4132845,0.0001515,2]
[352907091,1739406634503,-164.16230038,0.00015188,2]
[352907092,1739406634512,-1000.0,0.000152,2]
[352907093,1739406634521,-329.09699659,0.00015214,2]
[352907094,1739406634530,-2873.69733372,0.00015227,2]
[352907095,1739406634540,-2854.64470938,0.00015227,2]
[352907096,1739406634550,-300.0,0.00015247,2]
[352907097,1739406634559,-178.24067021,0.00015252,2]
[352907098,1739406634569,-150.0,0.00015254,2]
[352907099,1739406634579,-152.42,0.00015259,2]
[352907100,1739406634591,-35049.0447057,0.00015269,2]
[352907101,1739406634601,-151.0,0.00015269,2]
[352907102,1739406634610,-161.612695,0.00015269,2]
[352907103,1739406634620,-151.0,0.00015269,2]
[352907104,1739406634629,-151.0,0.00015269,2]
[352907105,1739406634639,-151.0,0.00015269,2]
[352907106,1739406634648,-168.606986,0.00015269,2]
[352907107,1739406634657,-168.606986,0.00015269,2]
[352907108,1739406634666,-151.0,0.00015269,2]
[352907109,1739406634676,-249.713362,0.00015269,2]
[352907110,1739406634686,-151.0,0.00015279,2]
[352907111,1739406634697,-151.0,0.00015279,2]
[352907112,1739406634706,-258.229417,0.00015279,2]
[352907113,1739406634716,-249.936,0.00015279,2]
[352907114,1739406634725,-249.936,0.00015279,2]
[352907115,1739406634735,-151.0,0.00015279,2]
[352907116,1739406634744,-151.0,0.00015279,2]
[352907117,1739406634754,-151.0,0.00015279,2]
[352907118,1739406634764,-292.530521,0.00015279,2]
[352907119,1739406634774,-151.0,0.00015279,2]
[352907120,1739406634784,-151.0,0.00015279,2]
[352907121,1739406634793,-151.0,0.00015279,2]
[352907122,1739406634802,-151.0,0.00015279,2]
[352907123,1739406634813,-151.0,0.00015279,2]
[352907124,1739406634823,-151.0,0.00015279,2]
[352907125,1739406634835,-151.0,0.00015279,2]
[352907126,1739406634844,-151.0,0.00015279,2]
[352907127,1739406634853,-151.0,0.00015279,2]
[352907128,1739406634863,-151.0,0.00015279,2]
[352907129,1739406634874,-151.0,0.00015279,2]
[352907130,1739406634884,-151.0,0.00015279,2]
[352907131,1739406634894,-277.311398,0.00015279,2]
[352907132,1739406634904,-151.0,0.00015279,2]
[352907133,1739406634915,-151.0,0.00015279,2]
[352907134,1739406634925,-151.0,0.00015279,2]
[352907135,1739406634935,-227.096223,0.00015279,2]
[352907136,1739406634945,-151.0,0.00015279,2]
[352907137,1739406634955,-151.0,0.00015279,2]
[352907138,1739406634965,-151.0,0.00015279,2]
[352907139,1739406634976,-637.212681,0.00015279,2]
[352907140,1739406634986,-1135.910533,0.00015279,2]
[352907141,1739406634995,-637.212681,0.00015279,2]
[352907142,1739406635006,-749.163521,0.00015279,2]
[352907143,1739406635016,-1135.910533,0.00015279,2]
[352907144,1739406635025,-749.163521,0.00015279,2]
[352907145,1739406635035,-151.0,0.00015279,2]
[352907146,1739406635045,-278.307505,0.00015279,2]
[352907147,1739406635055,-278.307505,0.00015279,2]
[352907148,1739406635070,-151.0,0.00015279,2]
[352907149,1739406635080,-224.37011,0.00015279,2]
[352907150,1739406635094,-224.37011,0.00015279,2]
[352907151,1739406635103,-411.524031,0.00015279,2]
[352907152,1739406635113,-411.524031,0.00015279,2]
[352907153,1739406635123,-467.099237,0.00015279,2]
[352907154,1739406635132,-849.007241,0.00015279,2]
[352907155,1739406635141,-467.099237,0.00015279,2]
[352907156,1739406635151,-849.007241,0.00015279,2]
[352907157,1739406635161,-1804.37648,0.00015279,2]
[352907158,1739406635171,-451.525263,0.00015279,2]
[352907159,1739406635181,-1804.37648,0.00015279,2]
[352907160,1739406635190,-451.525263,0.00015279,2]
[352907161,1739406635203,-151.0,0.00015279,2]
[352907162,1739406635213,-151.0,0.00015279,2]
[352907163,1739406635223,-151.0,0.00015279,2]
[352907164,1739406635232,-326.349976,0.00015279,2]
[352907165,1739406635243,-326.349976,0.00015279,2]
[352907166,1739406635253,-151.0,0.00015279,2]
[352907167,1739406635262,-10000.0,0.00015279,2]
[352907168,1739406635272,-410.890911,0.00015279,2]
[352907169,1739406635284,-152.966618,0.00015279,2]
[352907170,1739406635296,-10000.0,0.00015279,2]
[352907171,1739406635306,-410.890911,0.00015279,2]
[352907172,1739406635316,-10000.0,0.00015279,2]
[352907173,1739406635328,-151.0,0.00015279,2]
[352907174,1739406635507,-151.0,0.00015279,2]
[352907175,1739406635518,-151.0,0.00015279,2]
[352907176,1739406635529,-151.0,0.00015279,2]
[352907177,1739406635541,-151.0,0.00015279,2]
[352907178,1739406635550,-151.0,0.00015279,2]
[352907179,1739406635560,-151.0,0.00015279,2]
[352907180,1739406635570,-151.0,0.00015279,2]
[352907181,1739406635580,-151.35986,0.00015279,2]
[352907182,1739406635591,-151.0,0.0001528,2]
[352907183,1739406635602,-151.0,0.0001528,2]
[352907184,1739406635612,-224.48,0.0001528,2]
[352907185,1739406635625,-224.48,0.0001528,2]
[352907186,1739406635635,-151.0,0.0001528,2]
[352907187,1739406635644,-151.0,0.0001528,2]
[352907188,1739406635654,-152.42,0.0001528,2]
[352907189,1739406635663,-151.0,0.0001529,2]
[352907190,1739406635672,-151.0,0.0001529,2]
[352907191,1739406635681,-151.0,0.0001529,2]
[352907192,1739406635691,-220.961458,0.0001529,2]
[352907193,1739406635701,-151.0,0.0001529,2]
[352907194,1739406635711,-151.0,0.0001529,2]
[352907195,1739406635723,-246.672699,0.0001529,2]
[352907196,1739406635734,-151.0,0.0001529,2]
[352907197,1739406635743,-151.0,0.0001529,2]
[352907198,1739406635754,-151.558785,0.0001529,2]
[352907199,1739406635764,-151.558785,0.0001529,2]
[352907200,1739406635773,-245.731141,0.0001529,2]
[352907201,1739406635783,-245.731141,0.0001529,2]
[352907202,1739406635793,-220.899768,0.0001529,2]
[352907203,1739406635802,-151.0,0.0001529,2]
[352907204,1739406635813,-220.899768,0.0001529,2]
[352907205,1739406635822,-151.0,0.0001529,2]
[352907206,1739406635834,-158.539678,0.0001529,2]
[352907207,1739406635843,-158.539678,0.0001529,2]
[352907208,1739406635855,-151.0,0.0001529,2]
[352907209,1739406635866,-151.0,0.0001529,2]
[352907210,1739406635875,-937.174486,0.0001529,2]
[352907211,1739406635884,-937.174486,0.0001529,2]
[352907212,1739406635896,-151.0,0.0001529,2]
[352907213,1739406635907,-151.0,0.0001529,2]
[352907214,1739406635916,-151.0,0.0001529,2]
[352907215,1739406635926,-151.0,0.0001529,2]
[352907216,1739406635937,-151.0,0.0001529,2]
[352907217,1739406635946,-70098.0894115,0.0001529,2]
[352907218,1739406635955,-168.606986,0.0001529,2]
[352907219,1739406635964,-168.606986,0.0001529,2]
[352907220,1739406635974,-151.0,0.0001529,2]
[352907221,1739406635982,-152.42,0.0001529,2]
[352907222,1739406635992,-1000.0,0.00015299,2]
[352907223,1739406636002,-45460.0,0.000153,2]
[352907224,1739406636013,-151.0,0.000153,2]
[352907225,1739406636023,-151.0,0.000153,2]
[352907226,1739406636032,-151.0,0.000153,2]
[352907227,1739406636042,-151.0,0.000153,2]
[352907228,1739406636051,-151.0,0.000153,2]
[352907229,1739406636061,-151.0,0.000153,2]
[352907230,1739406636070,-151.0,0.000153,2]
[352907231,1739406636080,-151.0,0.000153,2]
[352907232,1739406636090,-151.0,0.000153,2]
[352907233,1739406636100,-151.0,0.000153,2]
[352907234,1739406636109,-297.396831,0.000153,2]
[352907235,1739406636119,-151.930333,0.000153,2]
[352907236,1739406636128,-151.0,0.000153,2]
[352907237,1739406636137,-151.0,0.000153,2]
[352907238,1739406636147,-235.56667,0.000153,2]
[352907239,1739406636156,-151.558785,0.000153,2]
[352907240,1739406636165,-151.558785,0.000153,2]
[352907241,1739406636174,-151.0,0.000153,2]
[352907242,1739406636184,-151.0,0.000153,2]
[352907243,1739406636194,-283.707716,0.000153,2]
[352907244,1739406636206,-151.0,0.000153,2]
[352907245,1739406636215,-151.0,0.000153,2]
[352907246,1739406636224,-247.882322,0.000153,2]
[352907247,1739406636234,-151.168797,0.000153,2]